bitfinex-derivatives/quotes_ETHF0:USTF0_20260116
["timestamp","ask_amount","ask_price","bid_price","bid_amount"]
[1768604568276,0.87591764,3295.5,3294.2,3.26323337]
[1768604568476,0.87591764,3295.4,3294.2,3.26323337]
[1768604568776,0.87591764,3295.3,3294.2,3.26323337]
[1768604568977,0.87591764,3295.2,3294.2,3.26323337]
[1768604569174,0.98177179,3295.6,3294.2,3.26323337]
[1768604569478,0.87593536,3295.5,3294.2,3.26323337]
[1768604569681,0.87593536,3295.4,3294.2,3.26323337]
[1768604569879,0.87593536,3295.3,3294.2,3.26323337]
[1768604570180,0.87593536,3295.2,3294.2,3.26323337]
[1768604570385,5.3288509,3295.8,3294.2,3.26323337]
[1768604570574,0.8759844,3295.7,3294.2,3.26323337]
[1768604570876,0.8759844,3295.6,3294.2,3.26323337]
[1768604571072,0.8759844,3295.5,3294.2,3.26323337]
[1768604571275,0.8759844,3295.4,3294.2,3.26323337]
[1768604571471,0.8759844,3295.3,3294.2,3.26323337]
[1768604571674,0.8759844,3295.2,3294.2,3.26323337]
[1768604571971,3.48782055,3295.6,3294.0,0.00256243]
[1768604572178,0.87601366,3295.5,3294.0,0.00256243]
[1768604572375,0.87601366,3295.4,3294.0,0.00256243]
[1768604572577,0.87601366,3295.3,3294.0,0.00256243]
[1768604572771,0.87601366,3295.2,3294.0,0.00256243]
[1768604572975,3.48782055,3295.6,3294.0,0.00256243]
[1768604573184,0.87601967,3295.5,3294.0,0.00256243]
[1768604573480,0.87601967,3295.4,3294.0,0.00256243]
[1768604573678,0.87601967,3295.3,3294.0,0.00256243]
[1768604573873,0.87601967,3295.2,3294.0,0.00256243]
[1768604574070,3.48782055,3295.6,3294.0,0.00256243]
[1768604574272,0.87603318,3295.5,3294.0,0.00256243]
[1768604574472,0.87603318,3295.4,3294.0,0.00256243]
[1768604574674,0.87603318,3295.3,3294.0,0.00256243]
[1768604574874,0.87603318,3295.2,3294.0,0.00256243]
[1768604575075,3.48782055,3295.6,3294.0,0.00256243]
[1768604575275,0.87604924,3295.5,3294.0,0.00256243]
[1768604575478,0.87604924,3295.4,3294.0,0.00256243]
[1768604575676,0.87604924,3295.3,3294.0,0.00256243]
[1768604575877,0.87604924,3295.2,3294.0,0.00256243]
[1768604576183,3.48782055,3295.6,3294.0,0.00256243]
[1768604576484,0.87606983,3295.5,3294.0,0.00256243]
[1768604576682,0.87606983,3295.4,3294.0,0.00256243]
[1768604576885,0.87606983,3295.3,3294.0,0.00256243]
[1768604577085,3.48782055,3295.6,3294.0,0.00256243]
[1768604577285,0.87609195,3295.5,3294.0,0.00256243]
[1768604577478,0.87609195,3295.4,3294.0,0.00256243]
[1768604577784,0.87609195,3295.3,3294.0,0.00256243]
[1768604577987,3.48782055,3295.6,3294.0,0.00256243]
[1768604578184,0.87620056,3295.5,3294.0,0.00256243]
[1768604578376,0.87620056,3295.4,3294.0,0.00256243]
[1768604578578,0.87620056,3295.3,3294.0,0.00256243]
[1768604578774,3.48782055,3295.6,3294.0,0.00256243]
[1768604578978,0.87620049,3295.5,3294.0,0.00256243]
[1768604579178,0.87620049,3295.4,3294.0,0.00256243]
[1768604579378,0.87620049,3295.3,3294.0,0.00256243]
[1768604579682,3.48782055,3295.6,3294.0,0.00256243]
[1768604579884,0.87620007,3295.5,3294.0,0.00256243]
[1768604580084,0.87620007,3295.4,3294.0,0.00256243]
[1768604580285,0.87620007,3295.3,3294.0,0.00256243]
[1768604580480,3.48782055,3295.6,3294.0,0.00256243]
[1768604580679,4.36402178,3295.5,3294.0,0.00256243]
[1768604580888,0.87620123,3295.4,3294.0,0.00256243]
[1768604581081,0.87620123,3295.3,3294.0,0.00256243]
[1768604581279,3.48782055,3295.5,3294.0,0.00256243]
[1768604581480,3.48782055,3295.3,3294.0,0.00256243]
[1768604581680,4.36402856,3295.2,3294.0,0.00256243]
[1768604581882,3.48782055,3295.2,3294.0,0.00256243]
[1768604583478,1.713,3295.8,3293.5,3.77883031]
[1768604583479,3.48782055,3294.7,3293.5,3.77883031]
[1768604583680,3.48782055,3294.7,3293.4,0.006073]
[1768604583981,3.48782055,3295.1,3293.4,3.31533439]
[1768604584182,0.15179,3295.4,3293.4,3.31533439]
[1768604584183,0.8776187,3295.0,3293.8,3.30926139]
[1768604584485,6.397,3295.9,3294.2,3.30926139]
[1768604584486,10.03659055,3295.9,3294.2,3.30926139]
[1768604584784,0.87716015,3295.8,3294.2,3.30926139]
[1768604584984,0.87716015,3295.7,3294.2,3.30926139]
[1768604585187,0.87716015,3295.6,3294.2,3.30926139]
[1768604585386,3.63959055,3295.9,3294.2,3.30926139]
[1768604585587,0.8769635,3295.8,3294.2,3.30926139]
[1768604585789,0.8769635,3295.7,3294.2,3.30926139]
[1768604585989,0.8769635,3295.6,3294.2,3.30926139]
[1768604586287,3.63959055,3295.9,3294.2,3.30926139]
[1768604586586,0.87686986,3295.8,3294.2,3.30926139]
[1768604586788,0.87686986,3295.7,3294.2,3.30926139]
[1768604587087,0.87686986,3295.6,3294.2,3.30926139]
[1768604587288,3.63959055,3295.9,3294.2,3.30926139]
[1768604587585,0.87678929,3295.8,3294.2,3.30926139]
[1768604587787,0.87678929,3295.7,3294.2,3.30926139]
[1768604587986,0.87678929,3295.6,3294.2,3.30926139]
[1768604588191,3.63959055,3295.9,3294.2,3.30926139]
[1768604588382,0.87675485,3295.8,3294.2,3.30926139]
[1768604588582,0.87675485,3295.7,3294.2,3.30926139]
[1768604588789,0.87675485,3295.6,3294.2,3.30926139]
[1768604588985,3.48782055,3295.9,3294.2,3.30926139]
[1768604589186,3.48782055,3295.3,3293.8,0.00283688]
[1768604589391,3.48782055,3294.9,3293.8,0.00283688]
[1768604589785,0.87687635,3294.8,3293.4,3.31533439]
[1768604589985,5.19982055,3295.4,3293.4,3.31533439]
[1768604590190,0.87686384,3295.3,3293.9,3.30926139]
[1768604590495,3.48782055,3295.8,3294.0,3.30926139]
[1768604590692,0.87663363,3295.7,3294.0,3.46390588]
[1768604590991,0.87663363,3295.6,3294.0,3.46390588]
[1768604591193,3.48782055,3295.8,3294.0,3.46390588]
[1768604591395,0.87661639,3295.7,3294.0,3.46390588]
[1768604591692,0.87661639,3295.6,3294.0,3.46390588]
[1768604591888,3.48782055,3295.8,3294.3,3.30926139]
[1768604592088,3.48782055,3295.4,3294.0,0.00279449]
[1768604592991,3.48782055,3295.2,3294.0,0.00279449]
[1768604593895,3.63959055,3295.8,3294.0,3.31205588]
[1768604594085,4.36445944,3295.7,3294.0,3.31205588]
[1768604594287,0.87663889,3295.6,3294.0,3.31205588]
[1768604601695,4.39364507,3295.6,3294.0,0.00279449]
[1768604602002,3.51700618,3295.4,3294.0,0.00279449]
[1768604603901,0.87664055,3295.3,3294.0,0.00279449]
[1768604604098,3.51700618,3295.4,3294.0,0.00279449]
[1768604604303,0.87664041,3295.3,3294.0,0.00279449]
[1768604604600,3.51700618,3295.4,3294.0,0.00279449]
[1768604604802,0.87663712,3295.3,3294.0,0.00279449]
[1768604605002,3.51700618,3295.4,3294.0,0.00279449]
[1768604605303,0.87663698,3295.3,3294.0,0.00279449]
[1768604605505,3.51700618,3295.4,3294.0,0.00279449]
[1768604605805,0.87663465,3295.3,3294.0,0.00279449]
[1768604605997,3.51700618,3295.4,3294.0,0.00279449]
[1768604606198,0.87663451,3295.3,3294.0,0.00279449]
[1768604606499,3.51700618,3295.4,3294.0,0.00279449]
[1768604606696,0.87663233,3295.3,3294.0,0.00279449]
[1768604606894,3.51700618,3295.4,3294.0,0.00279449]
[1768604607096,0.87663234,3295.3,3294.0,0.00279449]
[1768604607301,3.51700618,3295.4,3294.0,0.00279449]
[1768604607495,0.87663034,3295.3,3294.0,0.00279449]
[1768604607694,3.51700618,3295.4,3294.0,0.00279449]
[1768604607897,0.87663034,3295.3,3294.0,0.00279449]
[1768604608099,3.51700618,3295.4,3294.0,0.00279449]
[1768604608404,0.87762924,3295.3,3294.0,0.00279449]
[1768604608607,3.51700618,3295.4,3294.0,0.00279449]
[1768604608801,0.877628,3295.3,3294.0,0.00279449]
[1768604609003,3.51700618,3295.4,3294.0,0.00279449]
[1768604609304,0.87762788,3295.3,3294.0,0.00279449]
[1768604609505,3.51700618,3295.4,3294.0,0.00279449]
[1768604609807,0.8776253,3295.3,3294.0,0.00279449]
[1768604609998,3.51700618,3295.4,3294.0,0.00279449]
[1768604610192,0.87762531,3295.3,3294.0,0.00279449]
[1768604610391,0.15178,3295.6,3294.0,3.57637409]
[1768604610592,0.15178,3295.6,3294.2,3.5735796]
[1768604612005,3.43463401,3295.5,3294.0,0.00279449]
[1768604614214,3.28284401,3295.3,3294.0,0.00279449]
[1768604614409,3.43464401,3295.3,3294.0,0.00279449]
[1768604614796,0.87915494,3295.2,3294.0,0.00279449]
[1768604615002,3.28284401,3295.1,3294.0,0.00279449]
[1768604615705,0.15177,3295.9,3294.1,3.5735796]
[1768604615908,0.87912485,3295.8,3294.1,3.5735796]
[1768604616113,0.87912485,3295.7,3294.4,4.55712487]
[1768604616299,0.15177,3295.9,3294.4,4.55712487]
[1768604616505,0.87904919,3295.8,3294.4,4.55712487]
[1768604616816,0.87904919,3295.7,3294.4,4.55712487]
[1768604617004,0.15177,3295.9,3294.4,4.55712487]
[1768604617203,0.87904241,3295.8,3294.4,4.55712487]
[1768604617508,0.87904241,3295.7,3294.4,4.55712487]
[1768604617712,4.99705437,3296.0,3294.4,4.55712487]
[1768604617916,0.87902017,3295.9,3294.4,4.55712487]
[1768604618119,0.87902017,3295.8,3294.4,4.55712487]
[1768604618317,4.99705437,3296.0,3294.4,4.55712487]
[1768604618517,0.87894204,3295.9,3294.4,4.55712487]
[1768604618718,0.87894204,3295.8,3294.4,4.55712487]
[1768604619022,4.99705437,3296.0,3294.4,4.55712487]
[1768604619218,0.87894218,3295.9,3294.4,4.55712487]
[1768604619420,0.87894218,3295.8,3294.4,4.55712487]
[1768604619618,4.99705437,3296.0,3294.4,4.55712487]
[1768604619814,3.28284401,3295.8,3294.0,3.57637409]
[1768604620019,4.16171337,3295.7,3294.0,3.57637409]
[1768604620220,3.28284401,3295.7,3294.0,3.57637409]
[1768604622124,3.28284401,3295.7,3294.0,0.00279449]
[1768604623517,3.28284401,3295.5,3294.0,0.00279449]
[1768604628724,4.26638928,3295.5,3294.0,0.00279449]
[1768604628920,4.31347328,3295.4,3294.0,0.00279449]
[1768604629227,3.43463401,3295.4,3294.0,0.00279449]
[1768604629429,0.9838126,3295.0,3294.0,0.00279449]
[1768604630430,3.28284401,3295.5,3294.0,0.15464449]
[1768604630633,3.28505437,3296.0,3294.4,0.9838126]
[1768604630824,3.5755619,3295.9,3294.4,0.9838126]
[1768604631026,0.8787493,3295.8,3294.4,0.9838126]
[1768604631324,1.8625619,3295.8,3294.4,0.9838126]
[1768604631524,0.8787493,3295.7,3294.4,0.9838126]
[1768604631720,0.9838126,3295.8,3294.4,0.9838126]
[1768604631921,0.87873704,3295.7,3294.4,0.9838126]
[1768604632126,1.713,3295.9,3294.4,0.9838126]
[1768604632327,0.87873156,3295.8,3294.4,0.9838126]
[1768604632528,1.713,3295.9,3294.4,0.9838126]
[1768604632731,0.87869369,3295.8,3294.4,0.9838126]
[1768604632923,1.713,3295.9,3294.4,0.9838126]
[1768604633129,0.87869368,3295.8,3294.4,0.9838126]
[1768604633331,1.713,3295.9,3294.4,0.9838126]
[1768604633536,0.87868116,3295.8,3294.4,0.9838126]
[1768604633738,1.713,3295.9,3294.4,0.9838126]
[1768604633942,0.8786811,3295.8,3294.4,0.9838126]
[1768604634134,1.713,3295.9,3294.4,0.9838126]
[1768604634332,0.8786811,3295.8,3294.4,0.9838126]
[1768604634534,1.713,3295.9,3294.4,0.9838126]
[1768604634733,0.87866779,3295.8,3294.4,0.9838126]
[1768604634934,1.713,3295.9,3294.4,0.9838126]
[1768604635135,0.87866816,3295.8,3294.4,0.9838126]
[1768604635335,1.713,3295.9,3294.4,0.9838126]
[1768604638846,1.713,3295.9,3294.4,4.40456143]
[1768604639043,0.00221036,3296.0,3295.0,0.9838126]
[1768604639240,0.00221036,3296.0,3294.7,3.42074883]
[1768604639445,0.00221036,3296.0,3294.6,1.1356426]
[1768604640546,0.00221036,3296.0,3294.9,4.40456143]
[1768604640741,0.00221036,3296.0,3295.2,0.9838126]
[1768604643549,0.00221036,3296.0,3294.9,4.40456143]
[1768604643745,0.00221036,3296.0,3295.2,4.40456143]
[1768604643946,8.26173,3296.8,3295.5,4.40456143]
[1768604644150,0.87766458,3296.7,3295.5,3.42074883]
[1768604644452,8.26173,3296.8,3295.5,3.42074883]
[1768604644652,1.713,3296.8,3295.7,0.9838126]
[1768604644851,0.9838126,3296.5,3295.1,3.42074883]
[1768604645144,0.9838126,3296.5,3295.2,4.40456143]
[1768604645348,0.9838126,3296.7,3295.2,4.40456143]
[1768604645741,1.7165366,3296.8,3295.5,0.9838126]
[1768604646042,1.7165366,3296.8,3295.6,3.42074883]
[1768604646239,0.9838126,3296.6,3295.2,3.42074883]
[1768604646543,0.9838126,3296.4,3295.2,3.42074883]
[1768604647444,0.9838126,3296.1,3294.8,0.15182]
[1768604647648,0.9838126,3296.1,3294.8,3.57256883]
[1768604647834,0.9838126,3296.4,3294.8,3.57256883]
[1768604648952,0.9838126,3296.1,3294.8,3.42074883]
[1768604649748,3.57014257,3296.4,3295.0,0.9838126]
[1768604649946,4.55395517,3296.4,3295.0,0.9838126]
[1768604650149,4.55395517,3296.4,3295.0,4.40456143]
[1768604650349,0.9838126,3296.4,3295.0,4.40456143]
[1768604652447,0.9838126,3295.7,3294.5,3.42074883]
[1768604652651,0.9838126,3295.7,3294.5,4.40456143]
[1768604652847,0.9838126,3296.0,3294.5,4.40456143]
[1768604653853,4.55395517,3296.3,3294.8,0.9838126]
[1768604656155,4.55395517,3296.3,3294.8,4.40456143]
[1768604656547,0.9838126,3296.3,3294.9,3.42074883]
[1768604656948,0.9838126,3296.3,3295.1,0.9838126]
[1768604657254,0.9838126,3296.6,3295.2,3.42074883]
[1768604658151,4.55395517,3296.7,3295.2,3.42074883]
[1768604668267,3.57014257,3296.7,3295.4,0.9838126]
[1768604668564,2.7003492,3296.8,3295.4,0.9838126]
[1768604668767,0.88057477,3296.7,3295.6,0.9838126]
[1768604668964,1.7165366,3296.8,3295.8,0.9838126]
[1768604669267,1.7165366,3296.8,3296.0,0.9838126]
[1768604669268,0.0035366,3296.8,3296.0,0.9838126]
[1768604669668,2.8755371,3297.4,3296.2,0.9838126]
[1768604669868,0.88047117,3297.3,3296.4,0.9838126]
[1768604670170,3.56070179,3297.9,3296.6,0.9838126]
[1768604670366,0.9838126,3298.1,3296.6,0.9838126]
[1768604670671,0.87945869,3298.0,3296.6,0.98705362]
[1768604670970,0.9838126,3297.9,3296.6,0.98705362]
[1768604671472,0.00368993,3298.1,3296.6,0.98705362]
[1768604671770,1.86271778,3298.0,3296.6,0.98705362]
[1768604671969,0.9838126,3298.0,3296.6,0.98705362]
[1768604673365,0.9838126,3297.3,3296.6,0.00324102]
[1768604677575,0.9838126,3297.1,3295.7,0.15177]
[1768604677770,0.9838126,3297.1,3295.7,1.1355826]
[1768604678074,0.9838126,3297.1,3295.7,4.51309174]
[1768604678277,0.9838126,3297.3,3295.9,0.9838126]
[1768604678578,0.9838126,3297.3,3295.9,0.98751632]
[1768604679467,4.58812772,3297.3,3295.9,0.98751632]
[1768604679667,0.9838126,3297.1,3295.9,0.00370372]
[1768604682470,0.9838126,3296.9,3295.9,0.00370372]
[1768604690284,3.60431512,3297.3,3295.9,0.00370372]
[1768604690480,0.9838126,3297.0,3295.9,0.00370372]
[1768604691289,3.60431512,3297.3,3295.9,0.00370372]
[1768604696390,3.41497341,3297.0,3295.9,0.00370372]
[1768604696893,1.713,3297.3,3295.9,0.00370372]
[1768604697094,0.8797265,3297.2,3295.9,0.00370372]
[1768604697293,5.12797341,3297.3,3295.9,0.00370372]
[1768604697499,0.87989933,3297.2,3295.9,0.00370372]
[1768604697686,3.41497341,3297.2,3295.9,0.00370372]
[1768604698394,0.88002128,3297.1,3295.9,0.00370372]
[1768604698594,3.41497341,3297.2,3295.9,0.00370372]
[1768604698798,0.88002127,3297.1,3295.9,0.00370372]
[1768604699095,3.41497341,3297.2,3295.9,0.00370372]
[1768604701998,1.713,3297.3,3295.9,3.58372304]
[1768604702900,3.41497341,3297.6,3295.9,3.73549304]
[1768604705508,4.748,3297.8,3295.9,3.73549304]
[1768604705700,0.88048594,3297.7,3295.9,3.73549304]
[1768604705899,4.748,3297.8,3295.9,3.73549304]
[1768604706104,0.88047767,3297.7,3296.1,3.58001932]
[1768604706299,1.713,3297.8,3296.1,3.58001932]
[1768604706502,0.88059142,3297.7,3296.1,3.58001932]
[1768604706699,1.713,3297.8,3296.1,3.58001932]
[1768604706998,0.88059142,3297.7,3296.1,3.58001932]
[1768604707200,1.713,3297.8,3296.1,3.58001932]
[1768604707508,1.713,3297.8,3296.1,3.73177932]
[1768604709302,5.12797341,3297.8,3296.1,3.73177932]
[1768604711608,5.12797341,3297.8,3296.3,3.58001932]
[1768604714906,3.41497341,3297.5,3295.9,0.00370372]
[1768604715207,3.56666341,3297.5,3295.9,0.00370372]
[1768604721518,3.41497341,3297.5,3295.9,0.00370372]
[1768604721909,3.41497341,3297.5,3295.9,3.46244347]
[1768604726620,1.713,3297.8,3296.3,3.45873975]
[1768604726824,0.88173797,3297.7,3296.3,3.45873975]
[1768604727024,5.2030885,3297.8,3296.3,3.45873975]
[1768604727325,0.88173538,3297.7,3296.3,3.45873975]
[1768604727515,0.88173538,3297.6,3296.3,3.45873975]
[1768604727716,5.2030885,3297.8,3296.3,3.45873975]
[1768604727912,0.88191032,3297.7,3296.3,3.45873975]
[1768604728118,0.88191032,3297.6,3296.3,3.45873975]
[1768604728325,5.2030885,3297.8,3296.3,3.45873975]
[1768604728525,0.88231828,3297.7,3296.3,3.45873975]
[1768604728824,0.88231828,3297.6,3296.3,3.45873975]
[1768604729023,5.2030885,3297.8,3296.3,3.45873975]
[1768604729223,0.8823187,3297.7,3296.3,3.45873975]
[1768604729424,0.8823187,3297.6,3296.3,3.45873975]
[1768604729622,5.2030885,3297.8,3296.3,3.45873975]
[1768604729823,0.88253142,3297.7,3296.3,3.45873975]
[1768604730023,0.88253142,3297.6,3296.3,3.45873975]
[1768604730224,5.2030885,3297.8,3296.3,3.45873975]
[1768604730525,0.88256206,3297.7,3296.3,3.45873975]
[1768604730723,0.88256206,3297.6,3296.3,3.45873975]
[1768604730923,5.2030885,3297.8,3296.3,3.45873975]
[1768604731123,0.88256118,3297.7,3296.3,3.45873975]
[1768604731328,0.88256118,3297.6,3296.3,3.45873975]
[1768604731529,5.2030885,3297.8,3296.3,3.45873975]
[1768604731730,0.88258988,3297.7,3296.3,3.45873975]
[1768604731930,0.88258988,3297.6,3296.3,3.45873975]
[1768604732232,5.2030885,3297.8,3296.3,3.45873975]
[1768604732430,0.88261665,3297.7,3296.3,3.45873975]
[1768604732727,0.88261665,3297.6,3296.3,3.45873975]
[1768604732924,5.2030885,3297.8,3296.3,3.45873975]
[1768604733124,0.88260512,3297.7,3296.3,3.45873975]
[1768604733324,0.88260512,3297.6,3296.3,3.45873975]
[1768604733625,5.2030885,3297.8,3296.3,3.45873975]
[1768604733824,0.88262952,3297.7,3296.3,3.45873975]
[1768604734128,0.88262952,3297.6,3296.3,3.45873975]
[1768604734329,5.2030885,3297.8,3296.3,3.45873975]
[1768604734528,0.88265257,3297.7,3296.3,3.45873975]
[1768604734728,0.88265257,3297.6,3296.3,3.45873975]
[1768604734930,5.2030885,3297.8,3296.3,3.45873975]
[1768604735130,0.88265244,3297.7,3296.3,3.45873975]
[1768604735322,0.88265244,3297.6,3296.3,3.45873975]
[1768604735523,5.2030885,3297.8,3296.3,3.45873975]
[1768604735724,0.88267372,3297.7,3296.3,3.45873975]
[1768604735925,0.88267372,3297.6,3296.3,3.45873975]
[1768604736126,5.2030885,3297.8,3296.3,3.45873975]
[1768604736327,0.88269376,3297.7,3296.3,3.45873975]
[1768604736527,0.88269376,3297.6,3296.3,3.45873975]
[1768604736728,5.2030885,3297.8,3296.3,3.45873975]
[1768604736921,0.88269376,3297.7,3296.3,3.45873975]
[1768604737126,0.88269376,3297.6,3296.3,3.45873975]
[1768604737323,5.2030885,3297.8,3296.3,3.45873975]
[1768604737527,0.88271308,3297.7,3296.3,3.45873975]
[1768604737732,0.88271308,3297.6,3296.3,3.45873975]
[1768604737927,5.2030885,3297.8,3296.3,3.45873975]
[1768604738128,0.88274942,3297.7,3296.3,3.45873975]
[1768604738336,0.88274942,3297.6,3296.3,3.45873975]
[1768604738534,5.2030885,3297.8,3296.3,3.45873975]
[1768604738727,0.88276719,3297.7,3296.3,3.45873975]
[1768604738925,0.88276719,3297.6,3296.3,3.45873975]
[1768604739136,5.2030885,3297.8,3296.3,3.45873975]
[1768604739336,0.8827841,3297.7,3296.3,3.45873975]
[1768604739538,0.8827841,3297.6,3296.3,3.45873975]
[1768604739734,5.2030885,3297.8,3296.3,3.45873975]
[1768604740036,0.8827841,3297.7,3296.3,3.45873975]
[1768604740238,3.51589135,3297.5,3296.0,0.15176]
[1768604740438,3.51589135,3297.3,3295.9,0.00370372]
[1768604740737,3.66759135,3297.3,3295.9,0.00370372]
[1768604741037,3.51589135,3297.1,3295.9,0.00370372]
[1768604744633,4.49855069,3297.1,3295.9,0.00370372]
[1768604744834,4.39889117,3297.0,3295.9,0.00370372]
[1768604745137,3.51589135,3296.9,3295.9,0.00370372]
[1768604751545,4.49864947,3296.8,3295.9,0.00370372]
[1768604754548,3.30966609,3296.7,3295.9,0.00370372]
[1768604754752,3.30966609,3296.7,3295.4,0.98275812]
[1768604755749,3.30966609,3296.7,3295.4,0.98574629]
[1768604760842,3.30966609,3296.7,3295.7,0.98275812]
[1768604767360,3.30966609,3297.1,3295.7,0.98275812]
[1768604767556,4.19262254,3297.0,3295.7,0.98275812]
[1768604767759,3.30966609,3297.0,3296.0,0.98275812]
[1768604767960,3.18769,3297.5,3296.3,0.98275812]
[1768604767961,3.30966609,3297.4,3296.3,0.98275812]
[1768604768260,0.88288222,3297.3,3296.0,0.98275812]
[1768604768461,4.29242421,3297.4,3296.0,0.98275812]
[1768604768658,0.88308328,3297.3,3296.0,0.98275812]
[1768604768861,4.29242421,3297.4,3296.0,0.98275812]
[1768604769158,0.88308328,3297.3,3296.0,0.98275812]
[1768604769360,0.88308328,3297.2,3296.0,0.98275812]
[1768604769561,4.29242421,3297.4,3296.0,0.98275812]
[1768604769859,0.8833267,3297.3,3296.0,0.98275812]
[1768604770058,0.98275812,3296.6,3295.4,0.00298817]
[1768604770253,4.29242421,3296.8,3295.4,0.98574629]
[1768604775658,3.036,3297.5,3295.4,0.00298817]
[1768604775659,0.98275812,3296.4,3295.4,0.00298817]
[1768604777456,3.30966609,3296.5,3295.4,0.00298817]
[1768604777654,0.98275812,3296.8,3295.4,0.98574629]
[1768604777853,0.88411819,3296.7,3295.4,0.98574629]
[1768604778054,4.29242421,3296.8,3295.4,0.98574629]
[1768604778261,3.30966609,3297.3,3296.0,0.98275812]
[1768604778460,4.19549286,3297.2,3296.0,0.98275812]
[1768604778760,0.88582677,3297.1,3296.0,0.98275812]
[1768604778962,0.88582677,3297.0,3295.8,0.98275812]
[1768604779156,0.88582677,3296.9,3295.8,0.98275812]
[1768604779358,4.29242421,3297.2,3295.8,0.98275812]
[1768604779561,0.88578255,3297.1,3295.8,0.98275812]
[1768604779762,0.88578255,3297.0,3295.8,0.98275812]
[1768604780059,0.88578255,3296.9,3295.8,0.98275812]
[1768604780256,4.29242421,3297.2,3295.8,0.98275812]
[1768604780458,0.88577757,3297.1,3295.8,0.98275812]
[1768604780660,0.88577757,3297.0,3295.8,0.98275812]
[1768604780863,0.88577757,3296.9,3295.8,0.98275812]
[1768604781058,3.30966609,3297.2,3296.0,0.98275812]
[1768604781258,0.8857607,3297.1,3296.0,0.98275812]
[1768604781461,0.8857607,3297.0,3296.0,0.98275812]
[1768604781757,3.30966609,3297.2,3296.0,0.98275812]
[1768604781955,0.88576083,3297.1,3296.0,0.98275812]
[1768604782255,0.88576083,3297.0,3296.0,0.98275812]
[1768604782452,3.30966609,3297.2,3296.0,0.98275812]
[1768604782649,0.88575096,3297.1,3296.0,0.98275812]
[1768604782849,0.88575096,3297.0,3296.0,0.98275812]
[1768604783149,3.30966609,3297.2,3296.0,0.98275812]
[1768604783353,0.88574322,3297.1,3296.0,0.98275812]
[1768604783561,0.88574322,3297.0,3296.0,0.98275812]
[1768604783758,3.30966609,3297.2,3296.0,0.98275812]
[1768604783959,0.88571179,3297.1,3296.0,0.98275812]
[1768604784156,0.88571179,3297.0,3296.0,0.98275812]
[1768604784359,3.30966609,3297.2,3296.0,0.98275812]
[1768604784560,0.88568699,3297.1,3296.0,0.98275812]
[1768604784863,0.88568699,3297.0,3296.0,0.98275812]
[1768604785058,3.30966609,3297.2,3296.0,0.98275812]
[1768604785255,0.88566994,3297.1,3296.0,0.98275812]
[1768604785458,0.88566994,3297.0,3296.0,0.98275812]
[1768604785659,3.30966609,3297.2,3296.0,0.98275812]
[1768604785959,0.88566995,3297.1,3296.0,0.98275812]
[1768604786159,0.88566995,3297.0,3296.0,0.98275812]
[1768604786362,0.98275812,3296.6,3295.4,0.00298817]
[1768604786670,0.98275812,3296.4,3295.4,0.00298817]
[1768604788270,4.26930811,3296.6,3295.4,0.00298817]
[1768604789070,0.98275812,3296.4,3295.4,0.00298817]
[1768604792875,0.98275812,3296.2,3295.4,0.00298817]
[1768604794682,4.36747637,3296.2,3295.4,0.00298817]
[1768604795986,3.38471825,3296.2,3295.4,0.00298817]
[1768604796788,4.36747637,3296.2,3295.4,0.00298817]
[1768604799881,3.38471825,3296.1,3294.7,0.98275812]
[1768604800084,4.36747637,3296.0,3294.7,0.98275812]
[1768604800678,4.36747637,3296.0,3294.4,7.3198162]
[1768604800882,4.36747637,3296.0,3294.7,0.98275812]
[1768604803990,3.38471825,3296.0,3294.7,0.98275812]
[1768604810793,3.38471825,3296.0,3294.4,3.54479109]
[1768604811095,3.38471825,3296.0,3294.7,0.98275812]
[1768604811396,3.38471825,3296.0,3294.4,3.54479109]
[1768604813793,3.38471825,3296.0,3294.5,0.15183]
[1768604817800,3.49005936,3296.4,3294.6,3.53527986]
[1768604818090,4.22432151,3296.3,3294.6,3.53527986]
[1768604818298,0.88600215,3296.2,3294.6,3.53527986]
[1768604818497,3.33831936,3296.3,3294.6,3.53527986]
[1768604818797,0.8859565,3296.2,3294.6,3.53527986]
[1768604819002,3.33831936,3296.3,3294.6,3.53527986]
[1768604819182,0.8859565,3296.2,3294.6,3.53527986]
[1768604819492,3.33831936,3296.2,3294.6,3.53527986]
[1768604821297,0.88619118,3296.1,3294.6,3.53527986]
[1768604821498,3.33831936,3296.2,3294.6,3.53527986]
[1768604821699,0.88619118,3296.1,3294.6,3.53527986]
[1768604821996,5.46906047,3298.0,3296.0,0.98315342]
[1768604822293,0.00368993,3298.1,3296.2,3.38344986]
[1768604822493,0.00368993,3298.1,3296.4,3.38344986]
[1768604822494,0.88509914,3298.0,3296.4,3.38344986]
[1768604822799,0.88509914,3297.9,3296.4,3.38344986]
[1768604823099,0.00368993,3298.1,3296.4,3.38344986]
[1768604823296,0.88422022,3298.0,3296.5,2.347]
[1768604823599,0.00368993,3298.1,3296.5,2.347]
[1768604823790,0.8842204,3298.0,3296.5,2.347]
[1768604824098,0.00368993,3298.1,3296.5,2.347]
[1768604825092,3.34200929,3298.1,3296.4,3.38344986]
[1768604827300,3.34200929,3298.1,3296.1,2.51]
[1768604827496,3.34200929,3298.1,3296.0,2.51]
[1768604828501,3.34200929,3298.1,3296.0,5.89344986]
[1768604829899,0.98315342,3297.4,3295.2,3.38344986]
[1768604830095,0.98315342,3297.4,3295.4,3.38344986]
[1768604832403,0.98315342,3297.4,3295.5,3.38344986]
[1768604833108,3.33831936,3297.3,3295.5,3.38344986]
[1768604850020,0.15172,3297.1,3295.5,3.38344986]
[1768604852831,0.88504975,3297.0,3295.5,3.38344986]
[1768604853132,0.15172,3297.1,3295.5,3.38344986]
[1768604853328,0.88514019,3297.0,3295.5,3.38344986]
[1768604853631,0.15172,3297.1,3295.5,3.38344986]
[1768604853934,0.88513143,3297.0,3295.5,3.38344986]
[1768604854128,0.15172,3297.1,3295.5,3.38344986]
[1768604855522,0.15172,3297.1,3295.6,0.98315342]
[1768604855829,0.15172,3297.1,3295.7,3.55399503]
[1768604858433,0.88595017,3297.0,3295.7,3.55399503]
[1768604858633,0.15172,3297.1,3295.7,3.55399503]
[1768604858838,0.88595015,3297.0,3295.7,3.55399503]
[1768604859032,0.15172,3297.1,3295.7,3.55399503]
[1768604859233,0.88595015,3297.0,3295.7,3.55399503]
[1768604859432,0.15172,3297.1,3295.7,3.55399503]
[1768604859635,0.88621238,3297.0,3295.7,3.55399503]
[1768604859936,0.15172,3297.1,3295.7,3.55399503]
[1768604860130,0.88621238,3297.0,3295.7,3.55399503]
[1768604860325,0.15172,3297.1,3295.7,3.55399503]
[1768604860533,0.88628108,3297.0,3295.7,3.55399503]
[1768604860732,0.15172,3297.1,3295.7,3.55399503]
[1768604861034,0.88628122,3297.0,3295.7,3.55399503]
[1768604861333,0.15172,3297.1,3295.7,3.55399503]
[1768604861535,0.88635813,3297.0,3295.7,3.55399503]
[1768604861735,0.15172,3297.1,3295.7,3.55399503]
[1768604861932,0.88635813,3297.0,3295.7,3.55399503]
[1768604862132,0.98315342,3297.2,3295.7,3.55399503]
[1768604862338,0.98315342,3296.8,3295.3,3.55399503]
[1768604862633,0.88645944,3296.7,3295.3,3.55399503]